bitfinex-derivatives/quotes_SOLF0:USTF0_20260305
["timestamp","ask_amount","ask_price","bid_price","bid_amount"]
[1772719784244,28.21492193,90.933,90.874,9.902]
[1772719784546,28.21492193,90.933,90.85,9.14262364]
[1772719784838,28.19685086,90.928,90.865,9.903]
[1772719785039,28.19685086,90.928,90.83,9.14262364]
[1772719785236,28.19685086,90.928,90.85,9.14262364]
[1772719785440,28.19685086,90.928,90.87,9.902]
[1772719785937,28.20395738,90.953,90.87,9.14262364]
[1772719786537,28.20300887,90.946,90.874,9.902]
[1772719787444,28.31913123,90.94,90.874,9.902]
[1772719788036,28.31845266,90.929,90.874,9.902]
[1772719788444,28.31845266,90.929,90.84,9.14262364]
[1772719788744,28.31845266,90.909,90.84,9.14262364]
[1772719789043,28.31845266,90.909,90.844,9.905]
[1772719789344,28.34999618,90.902,90.82,9.14262364]
[1772719789742,9.9,90.889,90.824,9.907]
[1772719790743,9.901,90.881,90.824,9.907]
[1772719791342,28.35636915,90.872,90.8,9.14262364]
[1772719791539,28.35636915,90.899,90.82,9.14262364]
[1772719791940,9.901,90.879,90.82,9.14262364]
[1772719792244,28.35636915,90.899,90.82,9.14262364]
[1772719792744,9.9,90.891,90.826,9.907]
[1772719792947,9.9,90.891,90.82,9.14262364]
[1772719793734,9.14262364,90.92,90.834,9.906]
[1772719793735,9.901,90.885,90.834,9.906]
[1772719793939,28.26544022,90.89,90.82,9.14262364]
[1772719795445,9.901,90.878,90.825,9.907]
[1772719795943,9.9,90.887,90.834,9.906]
[1772719796247,28.26544022,90.89,90.82,9.14262364]
[1772719797142,28.26544022,90.89,90.8,9.14262364]
[1772719798345,28.26544022,90.89,90.727,154.285]
[1772719798346,28.26543355,90.907,90.82,9.14262364]
[1772719798539,28.26543355,90.907,90.84,9.14262364]
[1772719799249,9.899,90.898,90.84,9.14262364]
[1772719799551,9.899,90.898,90.851,9.904]
[1772719800047,852.73848229,90.931,90.86,9.14262364]
[1772719800350,852.73848229,90.931,90.785,154.186]
[1772719800351,28.2653597,90.968,90.88,9.14262364]
[1772719800549,9.14262364,90.98,90.88,9.14262364]
[1772719800550,28.2653597,90.966,90.88,9.14262364]
[1772719801151,28.2653597,90.966,90.913,9.897]
[1772719801846,9.892,90.965,90.905,9.898]
[1772719802241,9.895,90.936,90.86,9.14262364]
[1772719802550,28.26931727,90.945,90.86,9.14262364]
[1772719803250,28.26931727,90.945,90.896,9.899]
[1772719803451,9.14262364,90.96,90.896,9.899]
[1772719803452,28.41656154,90.959,90.896,9.899]
[1772719804149,28.41618515,90.956,90.887,9.9]
[1772719804652,28.41618515,90.937,90.86,9.14262364]
[1772719805448,28.42494037,90.936,90.878,9.901]
[1772719806453,28.42458848,90.954,90.885,9.901]
[1772719806653,28.42458848,90.954,90.86,9.14262364]
[1772719806954,9.894,90.943,90.86,9.14262364]
[1772719807247,9.894,90.943,90.885,9.901]
[1772719807552,28.45251158,90.927,90.84,9.14262364]
[1772719807953,153.828,90.998,90.833,19.813]
[1772719807954,28.45251158,90.947,90.86,9.14262364]
[1772719808754,28.45251158,90.947,90.885,9.901]
[1772719809255,9.896,90.931,90.876,9.902]
[1772719809457,38.36125106,90.931,90.876,9.902]
[1772719809857,9.897,90.923,90.876,9.902]
[1772719810459,28.46498003,90.959,90.884,9.901]
[1772719810659,28.46498003,90.959,90.86,9.14262364]
[1772719811253,28.48895658,90.94,90.86,9.14262364]
[1772719811453,28.48895658,90.939,90.84,9.14262364]
[1772719811860,28.48895658,90.92,90.84,9.14262364]
[1772719812060,28.48895658,90.939,90.84,9.14262364]
[1772719812255,9.897,90.919,90.87,9.902]
[1772719812455,28.48872897,90.918,90.84,9.14262364]
[1772719812862,28.48872897,90.918,90.854,9.904]
[1772719813262,28.48872897,90.918,90.84,9.14262364]
[1772719813862,28.48872897,90.918,90.87,9.902]
[1772719814566,9.897,90.917,90.87,9.902]
[1772719814964,28.48872897,90.918,90.87,9.902]
[1772719815160,9.896,90.925,90.87,9.902]
[1772719815569,28.57814632,90.936,90.86,9.14262364]
[1772719815962,28.57814632,90.936,90.894,9.9]
[1772719816165,9.895,90.941,90.894,9.9]
[1772719816367,9.896,90.926,90.84,9.14262364]
[1772719816667,28.57805906,90.925,90.84,9.14262364]
[1772719817069,9.897,90.917,90.84,9.14262364]
[1772719817568,28.54351765,90.943,90.84,9.14262364]
[1772719817770,28.54351765,90.943,90.86,9.14262364]
[1772719818273,28.54351765,90.943,90.884,9.901]
[1772719819265,9.895,90.941,90.884,9.901]
[1772719819572,28.54351765,90.943,90.86,9.14262364]
[1772719820070,28.54351765,90.943,90.891,9.9]
[1772719820071,38.43751765,90.943,90.891,9.9]
[1772719820766,28.5433032,90.939,90.882,9.901]
[1772719820971,28.5433032,90.939,90.86,9.14262364]
[1772719821970,28.5521245,90.959,90.88,9.14262364]
[1772719822272,28.55201196,90.978,90.9,9.14262364]
[1772719823171,28.55201196,90.978,90.904,19.798]
[1772719824170,266.06224479,91.028,90.904,19.798]
[1772719824171,28.54173784,90.998,90.943,9.894]
[1772719825163,28.54161437,90.996,90.943,9.894]
[1772719825568,28.52509332,90.994,90.91,9.10924731]
[1772719826369,28.52484126,90.985,90.91,9.10924731]
[1772719826771,28.52484126,90.985,90.89,9.10924731]
[1772719827176,28.52484126,90.975,90.923,9.896]
[1772719827564,28.5299769,90.973,90.915,9.897]
[1772719827974,28.5299769,90.973,90.89,9.10924731]
[1772719829374,28.5198603,90.966,90.907,9.898]
[1772719829778,28.5198603,90.966,90.89,9.10924731]
[1772719830279,28.51972422,90.964,90.913,9.898]
[1772719830473,28.51972422,90.964,90.89,9.10924731]
[1772719831280,28.51972422,90.964,90.912,9.898]
[1772719831474,28.51972422,90.964,90.89,9.10924731]
[1772719831979,28.54253255,90.959,90.89,9.10924731]
[1772719832479,28.54242482,90.957,90.902,9.899]
[1772719832974,28.54242482,90.957,90.91,9.898]
[1772719834275,28.77717987,90.956,90.87,9.10924731]
[1772719836377,28.7742053,90.954,90.902,9.899]
[1772719836879,28.7742053,90.954,90.87,9.10924731]
[1772719837079,28.7742053,90.943,90.886,9.9]
[1772719838380,28.77022016,90.941,90.886,9.9]
[1772719838880,28.77022016,90.941,90.878,9.901]
[1772719839081,9.10924731,90.95,90.84,9.10924731]
[1772719839082,28.77022016,90.923,90.84,9.10924731]
[1772719840182,28.72974289,90.909,90.849,9.905]
[1772719840480,28.72974289,90.929,90.84,9.10924731]
[1772719840871,28.72974289,90.921,90.84,9.10924731]
[1772719841876,9.10924731,90.95,90.84,9.10924731]
[1772719841877,28.62204333,90.914,90.84,9.10924731]
[1772719843482,28.62204333,90.914,90.862,9.903]
[1772719843884,28.62204333,90.914,90.869,9.902]
[1772719844082,28.62204333,90.914,90.84,9.10924731]
[1772719844287,28.58627175,90.949,90.84,9.10924731]
[1772719844486,28.58627175,90.935,90.86,9.10924731]
[1772719844688,28.58627175,90.969,90.88,9.10924731]
[1772719845182,28.58627175,90.952,90.903,9.899]
[1772719845593,28.62849159,90.95,90.895,9.899]
[1772719846093,38.52349159,90.934,90.881,9.901]
[1772719846294,28.62848249,90.933,90.881,9.901]
[1772719846487,28.62848249,90.933,90.86,9.10924731]
[1772719846888,28.62848249,90.949,90.897,9.899]
[1772719852696,28.62848249,90.949,90.906,9.898]
[1772719853195,28.62848249,90.949,90.863,19.806]
[1772719854193,28.83344858,90.946,90.895,9.9]
[1772719854492,28.83344858,90.946,90.86,9.10924731]
[1772719854697,28.83360966,90.924,90.87,9.902]
[1772719855297,28.83015556,90.921,90.87,9.902]
[1772719855889,28.83015556,90.921,90.877,9.901]
[1772719856087,28.83015556,90.921,90.79,33.74542987]
[1772719856088,28.83015556,90.938,90.86,9.10924731]
[1772719856290,28.83015556,90.938,90.889,9.9]
[1772719856591,28.83015556,90.938,90.86,9.10924731]
[1772719857499,28.83015556,90.938,90.896,9.899]
[1772719857901,28.83015556,90.938,90.861,19.807]
[1772719858704,28.83015556,90.938,90.896,9.899]
[1772719859305,28.83015556,90.938,90.889,9.9]
[1772719859908,28.83015556,90.938,90.861,19.807]
[1772719861511,28.83015556,90.938,90.895,9.9]
[1772719862706,28.83015556,90.938,90.887,9.9]
[1772719863808,28.83015556,90.938,90.86,9.10924731]
[1772719864812,28.83015556,90.938,90.866,19.806]
[1772719865809,28.83015556,90.938,90.899,9.899]
[1772719867812,28.73567737,90.958,90.88,9.10924731]
[1772719868012,28.73567737,90.958,90.9,9.10924731]
[1772719868713,28.73567737,90.958,90.923,9.896]
[1772719869021,28.73574467,90.975,90.92,9.10924731]
[1772719869218,28.73574467,90.992,90.92,9.10924731]
[1772719869523,28.73574467,90.992,90.946,9.894]
[1772719870218,28.73574467,90.992,90.94,9.10924731]
[1772719870609,28.73549262,91.017,90.961,9.892]
[1772719871209,28.73549262,91.017,90.968,9.892]
[1772719871410,28.73549262,91.017,90.94,9.10924731]
[1772719872610,28.73549262,91.017,90.963,9.892]
[1772719873517,28.73549262,91.017,90.971,9.891]
[1772719873717,28.73549262,91.017,90.94,9.10924731]
[1772719874120,28.73549262,91.017,90.962,9.892]
[1772719874720,28.73549262,91.017,90.97,9.891]
[1772719875520,28.73549262,91.017,90.96,9.10924731]
[1772719875819,28.73549262,91.017,90.94,9.10924731]
[1772719877115,28.73549262,91.017,90.92,9.10924731]
[1772719877723,28.73678144,90.999,90.9,9.10924731]
[1772719878532,28.73684176,90.996,90.9,9.10924731]
[1772719878823,28.73684176,90.979,90.9,9.10924731]
[1772719879022,28.73684176,90.979,90.912,9.898]
[1772719879213,28.73684176,90.979,90.9,9.10924731]
[1772719880224,28.73684176,90.979,90.92,9.897]
[1772719880426,28.73684176,90.979,90.88,9.10924731]
[1772719880620,28.75692794,90.959,90.86,9.10924731]
[1772719881618,9.10924731,90.96,90.86,9.10924731]
[1772719881619,28.71420373,90.953,90.888,9.9]
[1772719881822,9.10924731,90.94,90.84,9.10924731]
[1772719882020,28.71420373,90.939,90.84,9.10924731]
[1772719882422,28.71424711,90.937,90.84,9.10924731]
[1772719883021,28.71424711,90.935,90.857,9.904]
[1772719884329,28.14935577,90.932,90.866,9.903]
[1772719884726,28.14935577,90.932,90.85,9.12232343]
[1772719885030,28.14935577,90.932,90.875,9.902]
[1772719886526,28.14935577,90.932,90.886,9.9]
[1772719886732,9.12232343,90.98,90.87,9.12232343]
[1772719886930,9.12232343,90.98,90.893,9.9]
[1772719887224,9.12232343,90.96,90.85,9.12232343]
[1772719888429,9.895,90.939,90.871,9.902]
[1772719888826,19.50066279,90.938,90.871,9.902]
[1772719889726,19.43868089,90.936,90.871,9.902]
[1772719890629,19.43868089,90.936,90.879,9.901]
[1772719892926,19.4362856,90.934,90.879,9.901]
[1772719893130,19.4362856,90.934,90.869,9.902]
[1772719893926,19.43099123,90.923,90.83,9.12232343]
[1772719894232,19.43099123,90.923,90.85,9.12232343]
[1772719897525,19.43099123,90.923,90.866,9.903]
[1772719897731,19.43099123,90.923,90.85,9.12232343]
[1772719898129,19.43193308,90.921,90.857,9.904]
[1772719899438,19.43182649,90.918,90.85,9.904]
[1772719899639,19.43182649,90.918,90.83,9.12232343]
[1772719900043,19.43182649,90.918,90.856,9.904]
[1772719900644,19.43129761,90.916,90.856,9.904]
[1772719901446,19.42211232,90.913,90.843,9.905]
[1772719901838,19.42211232,90.902,90.83,9.12232343]
[1772719905049,19.42211232,90.902,90.859,9.903]
[1772719908544,19.42211232,90.902,90.86,4.25772803]
[1772719909851,19.4541058,90.925,90.88,4.25772803]
[1772719910057,19.4541058,90.941,90.9,4.25772803]
[1772719911057,19.45480933,90.929,90.87,4.25772803]
[1772719912356,19.45949929,90.909,90.86,4.25772803]
[1772719913749,19.41966334,90.907,90.86,4.25772803]
[1772719914356,4.25772803,90.9,90.775,26.7392944]
[1772719914560,17.29151505,90.869,90.82,4.25772803]
[1772719915059,17.29151505,90.859,90.81,4.25772803]
[1772719915763,17.29151505,90.859,90.8,4.25772803]
[1772719916462,17.29151505,90.859,90.78,9.13619419]
[1772719917854,17.246203,90.857,90.788,9.911]
[1772719918460,17.24685464,90.855,90.775,9.913]
[1772719918863,17.24685464,90.855,90.76,9.13619419]
[1772719919066,17.24685464,90.855,90.8,9.91]
[1772719920363,17.24685464,90.855,90.791,9.911]
[1772719922763,17.24685464,90.855,90.799,9.91]
[1772719923069,17.22461358,90.873,90.8,9.13619419]
[1772719923968,17.22461358,90.873,90.807,9.909]
[1772719924168,17.22461358,90.873,90.8,9.13619419]
[1772719924561,17.22461358,90.873,90.815,9.908]
[1772719925071,17.22461358,90.873,90.8,9.13619419]
[1772719925370,17.22461358,90.873,90.83,9.907]
[1772719925666,17.22461358,90.873,90.81,9.13619419]
[1772719925865,17.22461358,90.873,90.79,9.13619419]
[1772719926466,17.22461358,90.873,90.817,9.908]
[1772719927369,17.22461358,90.873,90.79,9.13619419]
[1772719927370,17.22461358,90.873,90.811,9.909]
[1772719929167,17.30109053,90.871,90.811,9.909]
[1772719932978,17.30109053,90.871,90.79,9.13619419]
[1772719934481,17.30109053,90.871,90.811,9.909]
[1772719935176,17.30109053,90.871,90.818,9.908]
[1772719935876,17.30109053,90.871,90.79,9.13619419]
[1772719936573,17.30109053,90.871,90.82,4.26186514]
[1772719936977,17.24679961,90.869,90.81,4.26186514]
[1772719937177,17.24679961,90.859,90.81,4.26186514]
[1772719937884,17.24679961,90.859,90.812,9.909]
[1772719940687,17.39996244,90.879,90.8,9.13546902]
[1772719941980,423.06551493,90.902,90.82,9.13546902]
[1772719942183,17.40417245,90.901,90.82,9.13546902]
[1772719942479,17.40417245,90.901,90.81,9.13546902]
[1772719943580,17.35340036,90.899,90.81,9.13546902]
[1772719944186,17.35340036,90.883,90.79,9.13546902]
[1772719944682,17.35340036,90.883,90.79,9.1337671]
[1772719944873,9.902,90.873,90.82,9.908]
[1772719945079,17.35380373,90.872,90.79,9.1337671]
[1772719946282,17.35380373,90.872,90.822,9.907]
[1772719947581,17.35380373,90.872,90.83,9.907]
[1772719947880,17.35380373,90.872,90.81,9.1337671]
[1772719948282,17.36643716,90.893,90.83,9.1337671]
[1772719948784,17.36643716,90.893,90.858,9.904]
[1772719950889,17.36643716,90.893,90.864,9.903]
[1772719951385,17.60046754,90.927,90.83,9.1337671]
[1772719952086,17.60046754,90.927,90.833,19.813]
[1772719953391,17.60116692,90.919,90.865,9.903]
[1772719954089,17.60116692,90.919,90.875,9.902]
[1772719955292,17.60116692,90.919,90.881,9.901]
[1772719956102,17.60116692,90.919,90.847,2.88207473]
[1772719958909,17.60116692,90.919,90.861,2.91047476]
[1772719959706,17.60116692,90.919,90.893,9.9]
[1772719961812,4.25698123,90.94,90.881,14.18089244]
[1772719962314,4.25698123,90.94,90.909,9.898]
[1772719963106,4.25698123,90.94,90.89,4.25698123]
[1772719963107,0.00098123,90.94,90.922,9.897]
[1772719963304,4.25698123,90.94,90.922,9.897]
[1772719963514,4.25698123,90.93,90.873,14.18089244]
[1772719963710,0.00098123,90.91,90.86,4.25698123]
[1772719964312,0.00098123,90.91,90.86,18.43787367]
[1772719964511,0.00098123,90.91,90.861,14.18089244]
[1772719964713,14.14171804,90.917,90.861,14.18089244]
[1772719965811,4.25698123,90.93,90.871,14.18089244]
[1772719966111,18.39869927,90.93,90.871,14.18089244]
[1772719967011,18.39869927,90.93,90.88,4.25698123]
[1772719967208,14.14171804,90.929,90.871,14.18089244]
[1772719967411,4.25698123,90.92,90.871,14.18089244]
[1772719967809,14.14171804,90.919,90.876,9.902]
[1772719968012,19.781,90.983,90.839,19.812]
[1772719968013,14.14171804,90.909,90.856,14.18089244]
[1772719968214,153.847,90.986,90.85,4.25698123]
[1772719968215,14.14171804,90.899,90.85,4.25698123]
[1772719968409,4.25698123,90.9,90.861,9.903]
[1772719968610,4.25698123,90.91,90.861,9.903]
[1772719968810,4.25698123,90.91,90.854,14.18089244]
[1772719968811,17.41870913,90.9,90.854,14.18089244]
[1772719969022,13.1617279,90.899,90.85,4.25698123]
[1772719969210,13.1617279,90.899,90.854,9.904]
[1772719971117,13.1617279,90.899,90.861,9.903]
[1772719971615,4.25698123,90.91,90.851,12.93308268]
[1772719972318,4.25698123,90.91,90.863,9.903]
[1772719972915,17.41870913,90.91,90.863,9.903]
[1772719973112,13.1617279,90.909,90.863,9.903]
[1772719973316,13.1617279,90.909,90.851,12.93308268]
[1772719973317,4.25698123,90.9,90.856,9.904]
[1772719973518,17.41870913,90.9,90.856,9.904]
[1772719977920,13.1617279,90.919,90.87,4.25698123]
[1772719978120,4.25698123,90.93,90.88,4.25698123]
[1772719978311,13.1617279,90.929,90.881,12.93308268]
[1772719978715,13.1617279,90.919,90.866,12.93308268]
[1772719978917,13.1617279,90.909,90.868,9.902]
[1772719980316,13.1617279,90.909,90.861,9.903]
[1772719984823,13.1617279,90.899,90.85,4.25698123]
[1772719986019,13.1617279,90.899,90.858,9.903]
[1772719988423,13.1617279,90.869,90.816,12.93308268]
[1772719988928,13.1617279,90.869,90.83,4.25698123]
[1772719989129,13.1617279,90.869,90.816,12.93308268]
[1772719989927,4.25698123,90.86,90.816,12.93308268]
[1772719990328,13.1617279,90.869,90.823,22.84008268]
[1772719990531,4.25698123,90.88,90.824,12.93308268]
[1772719990727,13.1617279,90.869,90.81,17.19006391]
[1772719990925,4.25698123,90.86,90.81,17.19006391]
[1772719992127,13.1617279,90.869,90.81,17.19006391]
[1772719992638,13.1617279,90.869,90.816,9.908]
[1772719993333,4.25698123,90.86,90.81,17.19006391]
[1772719993534,13.1617279,90.849,90.8,4.25698123]
[1772719994034,13.1617279,90.839,90.78,4.25698123]
[1772719994231,4.25698123,90.83,90.78,4.25698123]
[1772719994432,13.1617279,90.839,90.78,17.19006391]
[1772719994735,13.1617279,90.839,90.79,4.25698123]
[1772719995627,13.1617279,90.839,90.78,12.93308268]
[1772719995628,13.1617279,90.839,90.783,9.912]
[1772719995834,13.1617279,90.839,90.79,4.25698123]
[1772719996138,13.1617279,90.839,90.8,14.16698123]
[1772719996340,13.1617279,90.839,90.79,4.25698123]
[1772719997438,13.1617279,90.839,90.791,9.911]
[1772719998931,13.1617279,90.839,90.79,4.25698123]
[1772720000436,12.6510604,90.854,90.81,4.25698123]
[1772720000642,12.6510604,90.869,90.82,4.25698123]
[1772720001041,12.6510604,90.869,90.811,13.32355715]
[1772720001444,12.6510604,90.868,90.811,23.23255715]
[1772720002040,4.25698123,90.86,90.811,23.23255715]
[1772720003342,12.6510604,90.868,90.811,13.32355715]
[1772720003543,12.6510604,90.868,90.821,13.32355715]
[1772720004445,12.6510604,90.868,90.827,9.907]
[1772720005345,12.6510604,90.868,90.836,9.906]
[1772720006743,4.26146113,90.88,90.836,9.906]
[1772720006938,17.63246593,90.88,90.836,9.906]
[1772720007148,13.3710048,90.879,90.836,9.906]
[1772720009143,13.3710048,90.879,90.843,9.905]
[1772720009951,13.3710048,90.879,90.85,9.904]
[1772720011846,426.69052635,90.9,90.84,16.78831217]
[1772720012045,426.69052635,90.9,90.841,12.52685104]
[1772720013444,4.26146113,90.89,90.858,9.904]
[1772720015555,11.81589723,90.889,90.841,12.52685104]
[1772720016354,0.00089723,90.889,90.85,4.26146113]
[1772720017055,0.00089723,90.889,90.841,12.52685104]
[1772720017353,0.00089723,90.889,90.859,9.903]
[1772720018049,0.00089723,90.889,90.841,12.52685104]
[1772720018050,0.00089723,90.889,90.866,9.903]
[1772720019259,426.69052635,90.9,90.814,19.817]
[1772720019260,422.42906522,90.9,90.873,9.902]
[1772720019564,4.26146113,90.92,90.871,13.51919432]
[1772720020852,4.26146113,90.92,90.885,9.901]
[1772720023256,4.26146113,90.92,90.877,9.901]
[1772720023456,4.26146113,90.91,90.877,9.901]
[1772720026055,273.69496028,90.929,90.887,9.9]
[1772720026262,4.26146113,90.92,90.887,9.9]
[1772720026951,4.26146113,90.91,90.875,9.902]
[1772720027657,4.26146113,90.91,90.882,9.901]
[1772720027951,273.69496028,90.929,90.871,13.51919432]
[1772720028159,273.69496028,90.929,90.881,13.58223539]
[1772720028354,273.69496028,90.929,90.897,9.899]
[1772720029658,273.69496028,90.929,90.895,13.58226809]
[1772720030354,273.69496028,90.929,90.888,9.9]
[1772720030355,4.26146113,90.92,90.888,9.9]
[1772720030756,273.69496028,90.929,90.888,9.9]
[1772720033863,273.69496028,90.929,90.884,13.58838502]
[1772720034462,273.69496028,90.929,90.886,9.9]
[1772720034762,4.26146113,90.92,90.886,9.9]
[1772720035663,273.69496028,90.929,90.886,9.9]
[1772720037362,4.26146113,90.92,90.886,9.9]
[1772720037668,4.26146113,90.91,90.871,13.58003747]
[1772720037867,4.26146113,90.92,90.871,13.58003747]
[1772720038462,4.26146113,90.92,90.872,9.902]
[1772720038669,4.26146113,90.91,90.872,9.902]
[1772720039462,4.26146113,90.91,90.813,19.817]
[1772720039771,273.69496028,90.929,90.813,19.817]
[1772720039772,4.26146113,90.9,90.851,13.57304763]
[1772720039966,4.26146113,90.91,90.861,13.57304763]
[1772720040268,4.26146113,90.91,90.873,9.902]
[1772720040470,4.26146113,90.91,90.873,23.47507567]
[1772720041269,4.26146113,90.91,90.874,13.44597367]
[1772720041461,4.26146113,90.91,90.875,9.902]
[1772720041660,4.26146113,90.91,90.874,13.44597367]
[1772720041868,4.26146113,90.93,90.875,13.44597367]
[1772720042074,4.26146113,90.93,90.895,9.9]
[1772720042368,0.21566807,90.946,90.895,13.44598507]
[1772720042872,4.26146113,90.95,90.895,13.44598507]
[1772720043065,4.26146113,90.95,90.901,13.44598507]
[1772720043567,4.26146113,90.95,90.917,9.897]
[1772720043770,4.26146113,90.96,90.918,13.45067096]
[1772720044768,4.26146113,90.98,90.921,13.45068254]
[1772720045771,4.26146113,90.98,90.935,13.45374773]
[1772720046071,0.21664446,90.988,90.935,13.45374773]
[1772720046370,4.26146113,90.98,90.935,13.45374773]
[1772720047466,0.21664446,90.988,90.944,13.47677869]
[1772720047866,4.26146113,90.98,90.944,13.47677869]
[1772720048670,4.26146113,90.99,90.944,13.47677869]
[1772720049170,0.17442969,91.003,90.944,13.47677869]
[1772720049171,4.26146113,91.0,90.954,9.893]
[1772720049376,4.26146113,91.0,90.955,13.48239132]
[1772720049775,4.26146113,91.0,90.957,9.893]
[1772720049970,4.26146113,91.0,90.958,13.48239132]
[1772720050472,4.26146113,91.0,90.967,9.892]
[1772720050974,4.26146113,90.99,90.95,9.893]
[1772720052376,4.26146113,90.99,90.95,23.35175648]
[1772720052671,4.26146113,90.99,90.95,13.45875648]
[1772720052868,4.26146113,90.98,90.936,13.45875648]
[1772720054368,4.26146113,90.98,90.939,13.45050425]
[1772720058280,4.26146113,91.0,90.949,13.58798185]
[1772720058479,19.769,91.037,90.949,13.58798185]
[1772720058480,4.26146113,90.98,90.949,13.58798185]
[1772720058683,4.26146113,90.98,90.931,13.58798185]
[1772720058878,4.26146113,90.98,90.932,13.58798185]
[1772720059983,4.26146113,90.98,90.936,13.61759547]
[1772720060381,4.26146113,91.0,90.954,13.61762184]
[1772720062279,4.26146113,91.0,90.962,9.892]
[1772720062585,4.26146113,91.0,90.954,13.61762184]
[1772720062783,4.26677577,91.026,90.961,13.51594619]
[1772720062984,4.26146113,91.02,90.971,13.51594619]
[1772720064389,4.26146113,91.02,90.982,9.89]
[1772720065288,3.92943003,91.019,90.974,9.891]
[1772720065488,4.26146113,91.0,90.957,13.51594619]
[1772720065886,4.26146113,91.01,90.972,9.891]
[1772720066084,3.92943003,91.019,90.934,19.791]
[1772720066085,3.92943003,91.019,90.973,13.51594619]
[1772720067084,9.886,91.018,90.975,9.891]
[1772720067491,4.24843468,91.01,90.975,9.891]
[1772720068790,4.24843468,91.01,90.973,13.51594619]
[1772720068985,4.24843468,91.0,90.959,12.73550071]
[1772720069187,8.33568656,91.0,90.959,12.73550071]
[1772720069588,9.888,90.999,90.959,12.73550071]
[1772720070688,9.887,91.008,90.959,12.73550071]
[1772720070891,4.24843468,91.01,90.962,12.73550071]
[1772720071389,9.888,91.001,90.962,12.73550071]
[1772720071790,9.888,90.998,90.953,9.893]
[1772720072093,13.97594054,90.998,90.954,12.73550071]
[1772720072692,4.24843468,91.0,90.956,9.893]
[1772720072887,4.24843468,91.0,90.957,12.73550071]
[1772720073189,4.08780633,91.015,90.971,12.73550071]
[1772720073390,4.24843468,91.02,90.971,12.73550071]
[1772720073688,9.887,91.009,90.971,12.73550071]
[1772720074895,4.24843468,91.0,90.964,9.892]
[1772720075789,9.887,91.009,90.967,12.73550071]
[1772720076584,4.24843468,91.01,90.968,9.892]
[1772720076788,4.24843468,91.01,90.969,12.73550071]
[1772720076989,9.886,91.017,90.969,12.73550071]
[1772720077489,4.24843468,91.01,90.98,12.73550071]
[1772720077690,8.30095793,91.02,90.965,12.73550071]
[1772720077889,4.24843468,91.02,90.971,12.73550071]
[1772720079189,8.21138417,91.01,90.957,12.73550071]
[1772720079394,3.96294949,91.009,90.957,12.73550071]
[1772720079788,4.24843468,91.01,90.965,12.73550071]
[1772720080982,9.887,91.009,90.968,9.892]
[1772720081693,9.887,91.009,90.969,12.73550071]
[1772720081891,4.24843468,91.01,90.969,12.73550071]
[1772720082795,4.01630707,91.009,90.969,12.73550071]
[1772720082990,4.01630707,91.009,90.96,9.892]
[1772720083190,4.01630707,91.009,90.966,9.892]
[1772720083592,4.01630707,91.009,90.967,12.73550071]
[1772720083992,4.01630707,91.009,90.971,9.891]
[1772720084791,4.01630707,91.009,90.95,4.24843468]
[1772720084792,4.24843468,91.0,90.952,12.73550071]
[1772720084998,4.24843468,91.01,90.952,12.73550071]
[1772720085193,4.24843468,91.01,90.962,12.73550071]
[1772720085797,4.00657892,91.009,90.962,12.73550071]
[1772720086497,4.24843468,90.99,90.941,12.73550071]
[1772720086996,4.00657892,91.009,90.941,12.73550071]
[1772720087186,4.24843468,90.99,90.941,12.73550071]
[1772720087390,4.24843468,91.0,90.941,12.73550071]
[1772720088194,4.03420734,91.013,90.961,12.73550071]
[1772720088498,4.24843468,91.02,90.961,12.73550071]
[1772720088698,4.24843468,90.98,90.905,27.24638871]
[1772720089002,4.24843468,91.0,90.94,4.24843468]
[1772720089200,4.24843468,91.0,90.959,9.893]
[1772720089397,4.24843468,91.01,90.959,9.893]
[1772720090394,4.24843468,91.0,90.959,9.893]
[1772720090593,4.24843468,90.99,90.95,9.893]
[1772720091097,4.24843468,90.99,90.946,12.30352375]
[1772720092397,12.65067476,90.999,90.947,9.894]
[1772720092601,12.65067476,90.999,90.948,12.30352375]
[1772720092898,4.24843468,90.99,90.948,12.30352375]
[1772720093602,4.24843468,90.99,90.949,9.894]
[1772720094093,4.24843468,90.99,90.948,12.30352375]
[1772720094596,4.24843468,90.99,90.949,9.894]
[1772720094796,4.24843468,90.99,90.95,12.30352375]
[1772720096499,4.24843468,91.01,90.951,12.30352375]
[1772720097294,4.24843468,91.0,90.959,9.893]